fUSD/lending_fUSD_20240618
["ID","MTS","AMOUNT","RATE_DAILY","PERIOD"]
[329826970,1718716242926,-7091.02773777,0.0001398,2]
[329826971,1718716242938,-884.18795845,0.0001398,2]
[329826972,1718716242949,-636.02823687,0.0001398,2]
[329826973,1718716242959,-748.724,0.0001398,2]
[329826974,1718716242971,-2561.59159041,0.0001398,2]
[329826975,1718716242986,-1883.15914355,0.0001398,2]
[329826976,1718716243126,-1432.71557582,0.0001398,2]
[329826977,1718716243138,-31527.22120152,0.0001398,2]
[329826978,1718716243149,-54958.82654384,0.0001398,2]
[329826979,1718716243160,-6644.55524363,0.0001398,2]
[329826994,1718716245862,-306.32140071,0.00013979,2]
[329826995,1718716245872,-12583.37862684,0.0001398,2]
[329826996,1718716245883,-847.12500001,0.0001398,2]
[329826997,1718716245894,-250.10479714,0.0001398,2]
[329826998,1718716245906,-2197.79675111,0.0001398,2]
[329826999,1718716245918,-918.75679,0.0001398,2]
[329827000,1718716245930,-198894.65569522,0.0001398,2]
[329827001,1718716246132,-371.92879527,0.0001398,2]
[329827002,1718716246143,-1523.78274965,0.0001398,2]
[329827003,1718716246154,-282.35353315,0.0001398,2]
[329827004,1718716246166,-697.20652096,0.0001398,2]
[329827143,1718716285515,-625.19839405,0.00012439,2]
[329827144,1718716285537,-453.83009299,0.0001244,2]
[329827145,1718716285558,-157.09089731,0.0001258,2]
[329827146,1718716285579,-3000.0,0.0001384,2]
[329827147,1718716285601,-253.62978949,0.00013858,2]
[329827148,1718716285623,-502.38682773,0.00013978,2]
[329827149,1718716285645,-296.25996071,0.00013978,2]
[329827150,1718716285666,-300.0,0.00013978,2]
[329827151,1718716285687,-300.0,0.00013978,2]
[329827152,1718716285707,-525.61846069,0.00013978,2]
[329827153,1718716285728,-885.84004171,0.00013978,2]
[329827154,1718716285749,-1093.89791342,0.00013978,2]
[329827155,1718716285772,-3390.20012,0.00013978,2]
[329827156,1718716285793,-155.0,0.00013978,2]
[329827157,1718716285814,-400.00772996,0.00013979,2]
[329827158,1718716285836,-1661.03977194,0.00013979,2]
[329827159,1718717000861,165.92,0.00010493,2]
[329827160,1718717090129,199670.65639207,0.00010493,2]
[329827163,1718717310724,639.62,0.00011084,2]
[329827164,1718717326365,577.13723043,0.00013877,7]
[329827165,1718717344087,576.02033184,0.00013877,7]
[329827166,1718717358102,576.22020007,0.00013877,7]
[329827167,1718717413764,724.3,0.00013973,14]
[329827175,1718717436993,-269.79492486,0.00011628,2]
[329827179,1718717437527,-155.03481765,0.00011628,2]
[329827181,1718717437538,-1000.0,0.00011629,2]
[329827182,1718717437548,-3390.20012,0.0001163,2]
[329827183,1718717437559,-310.0,0.00011634,2]
[329827184,1718717437569,-181.0,0.00011651,2]
[329827185,1718717437579,-150.0,0.00011651,2]
[329827186,1718717437589,-1797.58231532,0.00011652,2]
[329827187,1718717437599,-210.0,0.00012816,2]
[329827188,1718717437609,-152.0,0.00012818,2]
[329827189,1718717437619,-12208.41,0.00012932,2]
[329827190,1718717437629,-1105.58,0.00013071,2]
[329827191,1718717437640,-2574.91,0.00013161,2]
[329827192,1718717437650,-250.0,0.00013169,2]
[329827193,1718717437661,-800.0,0.00013215,2]
[329827194,1718717437671,-150.78,0.00013221,2]
[329827195,1718717437681,-639.62,0.00013348,2]
[329827196,1718717437691,-162.96,0.00013699,2]
[329827197,1718717437702,-253.3057869,0.0001378,2]
[329827210,1718717437999,-3000.0,0.0001384,2]
[329827212,1718717438010,-293.03124832,0.00013878,2]
[329827214,1718717438021,-210.64354373,0.00013879,2]
[329827217,1718717438034,-718.42740746,0.00013879,2]
[329827219,1718717438047,-582.92504737,0.00013879,2]
[329827221,1718717438060,-4054.07201667,0.00013879,2]
[329827223,1718717438072,-2773.80808477,0.00013879,2]
[329827225,1718717438082,-4316.9679,0.00013879,2]
[329827226,1718717438092,-500.0,0.00013879,2]
[329827227,1718717438102,-72276.1181977,0.00013879,2]
[329827228,1718717438115,-571.61940899,0.00013879,2]
[329827229,1718717438127,-909.67996557,0.00013879,2]
[329827230,1718717438139,-11625.8174685,0.00013879,2]
[329827231,1718717438151,-628.12349577,0.00013879,2]
[329827232,1718717438163,-7210.22169859,0.00013879,2]
[329827233,1718717438175,-2259.47975856,0.00013879,2]
[329827234,1718717438187,-800.0,0.00013879,2]
[329827235,1718717438200,-1324.76351156,0.00013879,2]
[329827320,1718717440724,-1626.184,0.00013879,2]
[329827321,1718717440736,-19535.1,0.00013879,2]
[329827322,1718717440834,-277.42008501,0.00013879,2]
[329827323,1718717440851,-38935.72141899,0.00013879,2]
[329827333,1718717443120,-4133.87606122,0.00013879,2]
[329827336,1718717443130,-1564.50279715,0.00013879,2]
[329827340,1718717443141,-851.38627198,0.00013879,2]
[329827343,1718717443152,-3193.54127917,0.00013879,2]
[329827351,1718717443374,-32618.0,0.00013879,2]
[329827352,1718717443385,-20476.85653478,0.00013879,2]
[329827353,1718717443396,-1043.48612261,0.00013879,2]
[329827410,1718717446178,-23138.10192385,0.00013879,2]
[329827411,1718717446190,-2825.4578,0.00013879,2]
[329827412,1718717446200,-100000.0,0.00013879,2]
[329827413,1718717446209,-179.00886033,0.0001388,2]
[329827414,1718717446219,-327.60466191,0.0001388,2]
[329827416,1718717446228,-219.69,0.0001389,3]
[329827418,1718717446238,-1478.03659592,0.000139,2]
[329827420,1718717446250,-7097.89413774,0.000139,2]
[329827421,1718717446259,-184.8120264,0.000139,2]
[329827422,1718717446268,-377.863534,0.00013973,2]
[329827423,1718717446278,-32853.56857459,0.00013979,2]
[329827424,1718717446288,-178839.19870207,0.0001398,2]
[329827425,1718717446459,-721.76064,0.0001398,2]
[329827426,1718717542346,591.81377136,0.00010485,2]
[329827427,1718717589168,203.67792283,0.00010485,2]
[329827428,1718717589418,451.46136046,0.00010485,2]
[329827429,1718717631060,165.92,0.00010558,2]
[329827430,1718717731006,185.53,0.00010959,2]
[329827431,1718717742027,154.61,0.00010959,2]
[329827434,1718717752795,773.08,0.00010959,2]
[329827436,1718717854848,731.9,0.00010537,2]
[329827437,1718717934321,78500.78987141,0.00010537,2]
[329827438,1718717956236,201153.06937474,0.00010537,2]
[329827439,1718717988248,30039.44064789,0.00010537,2]
[329827440,1718717997062,19798.06682085,0.00010537,2]
[329827441,1718718001904,424.82974251,0.00010536,2]
[329827442,1718718010271,43300.24568807,0.00010537,2]
[329827443,1718718014566,298.22137448,0.00010537,2]
[329827444,1718718108795,50000.0,0.00011,4]
[329827445,1718718118595,50000.0,0.00011,5]
[329827449,1718718389442,695.3,9.114e-05,2]
[329827450,1718718430147,2435.2,0.00010944,2]
[329827451,1718718444406,258.45693959,0.000111,2]
[329827462,1718718447799,1000.0,0.000111,2]
[329827463,1718718452699,250.0,0.00010969,2]
[329827464,1718718465950,201.92999714,0.000111,2]
[329827465,1718718467274,205.93924996,0.000111,2]
[329827466,1718718482995,297.18797111,0.000111,2]
[329827467,1718718489981,424.82974251,0.000111,2]
[329827468,1718718527485,155.0,0.000111,2]
[329827469,1718718557494,250.0,0.0001093,2]
[329827470,1718718574683,258.45693959,0.000111,2]
[329827471,1718718580903,1000.0,0.000111,2]
[329827472,1718718597985,155.0,0.000111,2]
[329827473,1718718605822,570.97,0.0001102,2]
[329827478,1718718635389,-400.0,0.00011101,2]
[329827480,1718718635399,-1140.03225376,0.00011102,2]
[329827483,1718718635411,-2250.16786624,0.00011102,2]
[329827484,1718718635420,-536.7196223,0.00011103,2]
[329827485,1718718635430,-165.84,0.00011108,2]
[329827486,1718718635439,-382.68390419,0.00011138,2]
[329827487,1718718635448,-165.84,0.00011301,2]
[329827488,1718718635458,-695.3,0.00011378,2]
[329827489,1718718635467,-165.84,0.00011494,2]
[329827490,1718718635476,-150.88,0.00011604,2]
[329827491,1718718635486,-165.84,0.00011687,2]
[329827492,1718718635495,-156.35356322,0.000119,2]
[329827493,1718718635505,-159.88,0.00011911,2]
[329827494,1718718635514,-159.88,0.00011916,2]
[329827495,1718718635523,-159.88,0.0001192,2]
[329827496,1718718635532,-159.88,0.00011925,2]
[329827497,1718718635541,-159.88,0.00011929,2]
[329827498,1718718635550,-159.88,0.00011934,2]
[329827499,1718718635559,-159.88,0.00011939,2]
[329827500,1718718635569,-159.88,0.00011943,2]
[329827501,1718718635578,-159.88,0.00011948,2]
[329827502,1718718635588,-150.0,0.00011951,2]
[329827503,1718718635597,-159.88,0.00011952,2]
[329827504,1718718635611,-23999.74506005,0.00011952,2]
[329827505,1718718635622,-15215.06493995,0.00011952,2]
[329827506,1718718635631,-159.88,0.00011957,2]
[329827507,1718718635640,-159.88,0.00011961,2]
[329827508,1718718635650,-159.88,0.00011966,2]
[329827509,1718718635659,-159.88,0.00011971,2]
[329827510,1718718635668,-44062.207735,0.00011997,2]
[329827511,1718718635678,-186.33195013,0.00011998,2]
[329827512,1718718635688,-50000.0,0.00012,3]
[329827513,1718718635698,-200.0,0.00012063,2]
[329827514,1718718635707,-150.0,0.0001209,2]
[329827515,1718718635717,-260.89097247,0.00012126,2]
[329827516,1718718635726,-172.91,0.00012214,2]
[329827517,1718718635736,-9470.44,0.00012252,2]
[329827518,1718718635745,-158.57633162,0.0001237,2]
[329827519,1718718635755,-92538.63334257,0.00012375,2]
[329827520,1718718635766,-326.5417784,0.00012375,2]
[329827529,1718718640569,-27804.48745662,0.00012375,2]
[329827535,1718718640582,-1269.82868317,0.00012375,2]
[329827539,1718718640594,-251.4456621,0.00012375,2]
[329827550,1718718640913,-12969.09999999,0.00012375,2]
[329827551,1718718640926,-985.17974326,0.00012375,2]
[329827552,1718718640938,-300.0,0.00012375,2]
[329827562,1718718641379,-67049.76587051,0.00012375,2]
[329827565,1718718641392,-1649.49871262,0.00012375,2]
[329827567,1718718641404,-3142.42986044,0.00012375,2]
[329827569,1718718641416,-666.23816241,0.00012375,2]
[329827680,1718718643483,-4243.93039221,0.00012375,2]
[329827683,1718718643495,-393.8704,0.00012375,2]
[329827687,1718718643507,-8564.15862275,0.00012375,2]
[329827691,1718718643518,-275.1547882,0.00012375,2]
[329827693,1718718643881,-500.65600197,0.00012375,2]
[329827694,1718718643892,-1946.88,0.00012375,2]
[329827695,1718718643904,-1000.0,0.00012375,2]
[329827696,1718718643915,-6490.0,0.00012375,2]
[329827697,1718718643927,-346.42336189,0.00012375,2]
[329827750,1718718649024,-602.00844115,0.00012375,2]
[329827752,1718718649036,-64839.13720595,0.00012375,2]
[329827753,1718718649048,-364379.36146896,0.00012375,2]
[329827754,1718718649060,-2787.44339086,0.00012375,2]
[329827755,1718718649072,-1508.37426231,0.00012375,2]
[329827756,1718718649418,-516.78843707,0.00012375,2]
[329827759,1718718649430,-642.26682598,0.00012375,2]
[329827761,1718718649443,-271.83642,0.00012375,2]
[329827793,1718718953318,862.64,0.00010087,2]
[329827804,1718719137995,2737.35884337,0.00010949,2]
[329827807,1718719158664,-158.74713839,0.00011548,2]
[329827808,1718719158684,-162.86261419,0.00011548,2]
[329827809,1718719158713,-813.39024742,0.00011548,2]
[329827814,1718719513037,449.6773305,0.000112,2]
[329827815,1718719516037,339.20226691,0.000112,2]
[329827816,1718719524638,4211.12040259,0.000112,2]
[329827818,1718719572841,819.5,9.35e-05,2]
[329827819,1718719607501,153.77125084,0.00011099,2]
[329827826,1718719640168,151.0,0.00020469,120]
[329827852,1718719832944,-250.0,0.00011102,2]
[329827854,1718719832953,-241.94190087,0.00011172,2]
[329827856,1718719832963,-3390.20012,0.00011173,2]
[329827857,1718719832971,-300.0,0.00011173,2]
[329827858,1718719832980,-365.88910642,0.00011174,2]
[329827859,1718719832989,-1112.33697156,0.00011174,2]
[329827860,1718719833001,-293.34092058,0.00011174,2]
[329827861,1718719833013,-4184.57328522,0.00011174,2]
[329827862,1718719833022,-2876.0,0.00011174,2]
[329827863,1718719833032,-4621.42639349,0.00011175,2]
[329827864,1718719833041,-35531.18618163,0.00011176,2]
[329827865,1718719833051,-150.0,0.00011176,2]
[329827866,1718719833062,-536.7196223,0.00011179,2]
[329827867,1718719833071,-250.0,0.0001118,2]
[329827868,1718719833081,-1798.08630469,0.00011197,2]
[329827869,1718719833090,-1798.08630469,0.00011197,2]
[329827870,1718719833099,-1798.08630469,0.00011197,2]
[329827871,1718719833109,-557.04,0.00011203,2]
[329827872,1718719833119,-288.58,0.00011207,2]
[329827873,1718719833129,-1908.41,0.00011265,2]
[329827874,1718719833145,-153.66,0.00011446,2]
[329827875,1718719833155,-153.77125079,0.00011466,2]
[329827876,1718719833165,-153.66,0.00011488,2]
[329827877,1718719833174,-153.66,0.00011531,2]
[329827878,1718719833183,-499.99,0.0001155,2]
[329827879,1718719833192,-1923.46,0.00011556,2]
[329827880,1718719833201,-153.66,0.00011574,2]
[329827881,1718719833210,-200.0,0.00011581,2]
[329827882,1718719833219,-819.5,0.00011614,2]
[329827883,1718719833228,-153.66,0.00011616,2]
[329827884,1718719833237,-153.66,0.00011659,2]
[329827885,1718719833246,-153.66,0.00011701,2]
[329827886,1718719833255,-23900.0,0.00011723,2]
[329827887,1718719833265,-153.66,0.00011744,2]
[329827888,1718719833274,-153.66,0.00011787,2]
[329827889,1718719833283,-153.66,0.00011829,2]
[329827890,1718719833293,-153.77125079,0.00011833,2]
[329827891,1718719833302,-153.66,0.00011872,2]
[329827892,1718719833311,-153.66,0.00011914,2]
[329827893,1718719833320,-153.66,0.00011957,2]
[329827894,1718719833329,-153.66,0.00012,2]
[329827895,1718719833339,-153.66,0.00012042,2]
[329827896,1718719833348,-167.45,0.0001211,2]
[329827897,1718719833358,-532.05845602,0.00012155,2]
[329827898,1718719833367,-153.77125079,0.000122,2]
[329827899,1718719833376,-3000.0,0.0001225,2]
[329827900,1718719833389,-1220.95347916,0.0001226,2]
[329827901,1718719833402,-453.83009299,0.00012261,2]
[329827902,1718719833412,-210.0,0.00012293,2]
[329827903,1718719833421,-207.38216925,0.00012376,2]
[329827904,1718719833430,-299.11572322,0.00012376,2]
[329827905,1718719833442,-206.07249152,0.00012377,2]
[329827906,1718719833452,-424.69537084,0.00012399,2]
[329827907,1718719833461,-163.39,0.0001249,2]
[329827908,1718719833470,-1000.0,0.0001249,2]
[329827909,1718719833479,-153.77125079,0.00012566,2]
[329827910,1718719833488,-288.58,0.00012608,2]
[329827911,1718719833497,-153.77125079,0.00012933,2]
[329827912,1718719833508,-1298.4252021,0.00012992,2]
[329827913,1718719833517,-1000.0,0.00013299,2]
[329827914,1718719833527,-2500.0,0.00013299,2]
[329827915,1718719833536,-153.77125079,0.000133,2]
[329827916,1718719833546,-299.797219,0.00013377,2]
[329827917,1718719833555,-341.22790671,0.00013397,2]
[329827918,1718719833564,-367.51936553,0.00013397,2]
[329827919,1718719833573,-183.51620127,0.00013397,2]
[329827920,1718719833583,-502.33311118,0.00013398,2]
[329827921,1718719833593,-194047.37063555,0.00013399,2]
[329827922,1718719833634,-0.31386899,0.00013399,2]
[329827923,1718719835863,-169.69152221,0.00013377,2]
[329827925,1718719835873,-378087.35318261,0.00013399,2]
[329827927,1718719835885,-16278.72559764,0.00013399,2]
[329827929,1718719835902,-454.25461509,0.00013399,2]
[329827932,1718719835913,-452.13241904,0.00013399,2]
[329827934,1718719835925,-444.0,0.00013399,2]
[329827936,1718719835936,-1275.73562343,0.00013399,2]
[329827938,1718719835947,-968.325,0.00013399,2]
[329827940,1718719836167,-53506.81084757,0.00013399,2]
[329827977,1718719841638,-1396.466003,0.00011116,2]
[329827978,1718719841652,-46763.30904361,0.00013399,2]
[329827979,1718719841662,-2841126.74059521,0.000134,2]
[329827980,1718719841676,-1123.3096,0.00013477,2]
[329827981,1718719841686,-1000.0,0.00013477,2]
[329827982,1718719841695,-293.0,0.00013523,2]
[329827983,1718719841704,-267.00874468,0.00013576,2]
[329827984,1718719841715,-162.76120876,0.00013576,2]
[329827985,1718719841724,-173211.7439,0.00013578,2]
[329827986,1718719841734,-18560.3664,0.00013578,2]
[329827987,1718719841747,-500.0,0.00013578,2]
[329827988,1718719841758,-100000.0,0.00013578,2]
[329827989,1718719841768,-172.25146249,0.00013579,2]
[329827991,1718719841777,-28714.93429936,0.00013599,2]
[329827992,1718719841787,-151.0,0.00013599,2]
[329827993,1718719841796,-201.077588,0.00013599,2]
[329827994,1718719841806,-201.077588,0.00013599,2]
[329827995,1718719841816,-160.071511,0.00013599,2]
[329827996,1718719841825,-151.0,0.00013599,2]
[329827997,1718719841835,-151.0,0.00013599,2]
[329827998,1718719841845,-151.0,0.00013599,2]
[329827999,1718719841854,-151.0,0.00013599,2]
[329828001,1718719841862,-592.426673,0.00013599,2]
[329828003,1718719841871,-592.426673,0.00013599,2]
[329828005,1718719841880,-151.0,0.00013599,2]
[329828006,1718719841895,-151.0,0.00013599,2]
[329828007,1718719841906,-151.0,0.00013599,2]
[329828008,1718719841915,-151.2917,0.00013599,2]
[329828009,1718719841924,-686.635475,0.00013599,2]
[329828010,1718719841934,-686.635475,0.00013599,2]
[329828011,1718719841943,-151.0,0.00013599,2]
[329828012,1718719841952,-151.0,0.00013599,2]
[329828013,1718719841962,-813.70664,0.00013599,2]
[329828014,1718719841972,-813.70664,0.00013599,2]
[329828015,1718719841982,-151.0,0.00013599,2]
[329828016,1718719841991,-217.234899,0.00013599,2]
[329828017,1718719842001,-151.0,0.00013599,2]
[329828018,1718719842010,-151.0,0.00013599,2]
[329828019,1718719842020,-151.0,0.00013599,2]
[329828020,1718719842029,-151.0,0.00013599,2]
[329828021,1718719842039,-151.0,0.00013599,2]
[329828022,1718719842048,-151.0,0.00013599,2]
[329828023,1718719842058,-151.0,0.00013599,2]
[329828024,1718719842068,-151.0,0.00013599,2]
[329828025,1718719842077,-2015.816401,0.00013599,2]
[329828026,1718719842086,-2015.816401,0.00013599,2]
[329828027,1718719842096,-244.921967,0.00013599,2]
[329828028,1718719842106,-154.03553,0.00013599,2]
[329828029,1718719842116,-244.921967,0.00013599,2]
[329828030,1718719842126,-154.03553,0.00013599,2]
[329828031,1718719842135,-151.0,0.00013599,2]
[329828032,1718719842153,-151.0,0.00013599,2]
[329828033,1718719842162,-922.303996,0.00013599,2]
[329828034,1718719842171,-151.0,0.00013599,2]
[329828035,1718719842180,-922.303996,0.00013599,2]
[329828036,1718719842189,-151.0,0.00013599,2]
[329828037,1718719842198,-366.808012,0.00013599,2]
[329828038,1718719842207,-151.0,0.00013599,2]
[329828039,1718719842216,-366.808012,0.00013599,2]
[329828040,1718719842225,-151.0,0.00013599,2]
[329828041,1718719842234,-306.036353,0.00013599,2]
[329828042,1718719842243,-306.036353,0.00013599,2]
[329828043,1718719842253,-702.07055,0.00013599,2]
[329828044,1718719842264,-290.527149,0.00013599,2]
[329828045,1718719842274,-702.07055,0.00013599,2]
[329828046,1718719842284,-151.0,0.00013599,2]
[329828047,1718719842293,-151.0,0.00013599,2]
[329828048,1718719842302,-151.0,0.00013599,2]
[329828049,1718719842312,-290.527149,0.00013599,2]
[329828050,1718719842321,-151.0,0.00013599,2]
[329828051,1718719842331,-151.0,0.00013599,2]
[329828052,1718719842350,-151.0,0.00013599,2]
[329828053,1718719842360,-151.0,0.00013599,2]
[329828054,1718719842371,-662.687706,0.00013599,2]
[329828055,1718719842381,-151.0,0.00013599,2]
[329828056,1718719842393,-775.784967,0.00013599,2]
[329828057,1718719842403,-662.687706,0.00013599,2]
[329828058,1718719842412,-151.0,0.00013599,2]
[329828059,1718719842422,-775.784967,0.00013599,2]
[329828060,1718719842431,-153.151534,0.00013599,2]
[329828061,1718719842441,-151.0,0.00013599,2]
[329828062,1718719842451,-151.0,0.00013599,2]
[329828063,1718719842462,-151.0,0.00013599,2]
[329828064,1718719842472,-151.0,0.00013599,2]
[329828065,1718719842482,-175.761974,0.00013599,2]
[329828066,1718719842492,-1006.366818,0.00013599,2]
[329828067,1718719842501,-1006.366818,0.00013599,2]
[329828068,1718719842511,-151.0,0.00013599,2]
[329828069,1718719842520,-151.0,0.00013599,2]
[329828070,1718719842795,-151.0,0.00013599,2]
[329828071,1718719842832,-151.0,0.00013599,2]
[329828072,1718719842842,-151.0,0.00013599,2]
[329828073,1718719842852,-4969.232691,0.00013599,2]
[329828074,1718719842861,-151.0,0.00013599,2]
[329828075,1718719842871,-4969.232691,0.00013599,2]
[329828076,1718719842880,-151.0,0.00013599,2]
[329828077,1718719842889,-1171.268218,0.00013599,2]
[329828078,1718719842901,-1171.268218,0.00013599,2]
[329828079,1718719842911,-151.0,0.00013599,2]
[329828080,1718719842920,-152.764367,0.00013599,2]
[329828081,1718719842929,-151.0,0.00013599,2]
[329828082,1718719842938,-151.0,0.00013599,2]
[329828083,1718719842948,-215.987374,0.00013599,2]
[329828084,1718719842957,-151.0,0.00013599,2]
[329828085,1718719842967,-151.0,0.00013599,2]
[329828086,1718719842976,-215.987374,0.00013599,2]
[329828087,1718719842986,-151.0,0.00013599,2]
[329828088,1718719842995,-151.0,0.00013599,2]
[329828089,1718719843005,-151.0,0.00013599,2]
[329828090,1718719843014,-151.0,0.00013599,2]
[329828091,1718719843024,-151.0,0.00013599,2]
[329828092,1718719843033,-151.0,0.00013599,2]
[329828093,1718719843044,-211.922726,0.00013599,2]
[329828094,1718719843054,-151.0,0.00013599,2]
[329828095,1718719843064,-211.922726,0.00013599,2]
[329828096,1718719843073,-151.0,0.00013599,2]
[329828097,1718719843084,-151.0,0.00013599,2]
[329828098,1718719843094,-316.92510636,0.00013676,2]
[329828099,1718719843104,-156.52639166,0.00013676,2]
[329828100,1718719843113,-1250.47073675,0.00013676,2]
[329828101,1718719843123,-308.16762172,0.00013676,2]
[329828102,1718719843133,-198.99235913,0.00013676,2]
[329828103,1718719843146,-166.65902904,0.00013676,2]
[329828104,1718719843157,-506.89879856,0.00013676,2]
[329828105,1718719843167,-786.5384728,0.00013676,2]
[329828106,1718719843177,-8428.94573219,0.00013677,2]
[329828107,1718719843187,-151.0,0.00013679,2]
[329828108,1718719843196,-151.0,0.00013679,2]
[329828109,1718719843205,-151.0,0.00013679,2]
[329828110,1718719843215,-151.0,0.00013679,2]
[329828111,1718719843224,-181.614793,0.00013679,2]
[329828112,1718719843234,-181.614793,0.00013679,2]
[329828113,1718719843244,-151.0,0.00013679,2]
[329828114,1718719843254,-215.026085,0.00013679,2]
[329828115,1718719843264,-151.0,0.00013679,2]
[329828116,1718719843273,-151.0,0.00013679,2]
[329828117,1718719843284,-152.463302,0.00013679,2]
[329828118,1718719843294,-793.510986,0.00013679,2]
[329828119,1718719843304,-793.510986,0.00013679,2]
[329828120,1718719843314,-151.0,0.00013679,2]
[329828121,1718719843324,-163.010279,0.00013679,2]
[329828122,1718719843334,-201.077588,0.00013679,2]
[329828123,1718719843344,-201.077588,0.00013679,2]
[329828124,1718719843354,-151.0,0.00013679,2]
[329828125,1718719843364,-151.0,0.00013679,2]
[329828126,1718719843373,-151.0,0.00013679,2]
[329828127,1718719843383,-151.0,0.00013679,2]
[329828128,1718719843397,-592.426673,0.00013679,2]
[329828129,1718719843406,-592.426673,0.00013679,2]
[329828130,1718719843415,-151.0,0.00013679,2]
[329828131,1718719843424,-237.948708,0.00013679,2]
[329828132,1718719843433,-151.0,0.00013679,2]
[329828133,1718719843443,-686.635475,0.00013679,2]
[329828134,1718719843452,-686.635475,0.00013679,2]
[329828135,1718719843461,-151.0,0.00013679,2]
[329828136,1718719843471,-151.0,0.00013679,2]
[329828137,1718719843481,-813.70664,0.00013679,2]
[329828138,1718719843491,-813.70664,0.00013679,2]
[329828139,1718719843501,-151.0,0.00013679,2]
[329828140,1718719843511,-151.0,0.00013679,2]
[329828144,1718719843521,-151.0,0.00013679,2]
[329828149,1718719843531,-151.0,0.00013679,2]
[329828154,1718719843540,-151.0,0.00013679,2]
[329828157,1718719843549,-151.0,0.00013679,2]
[329828161,1718719843559,-151.0,0.00013679,2]
[329828166,1718719843569,-154.232082,0.00013679,2]
[329828170,1718719843579,-151.0,0.00013679,2]
[329828174,1718719843588,-2015.816401,0.00013679,2]
[329828178,1718719843597,-2015.816401,0.00013679,2]
[329828182,1718719843607,-244.921967,0.00013679,2]
[329828186,1718719843617,-154.03553,0.00013679,2]
[329828190,1718719843626,-244.921967,0.00013679,2]
[329828193,1718719843636,-154.03553,0.00013679,2]
[329828196,1718719843650,-151.0,0.00013679,2]
[329828197,1718719843660,-151.0,0.00013679,2]
[329828199,1718719843671,-922.303996,0.00013679,2]
[329828201,1718719843680,-165.341114,0.00013679,2]
[329828202,1718719843690,-922.303996,0.00013679,2]
[329828203,1718719843708,-991.45,0.00013699,2]
[329828204,1718719843718,-902.430821,0.00013699,2]
[329828205,1718719843728,-902.430821,0.00013699,2]
[329828206,1718719843738,-902.430821,0.00013699,2]
[329828207,1718719843748,-902.430821,0.00013699,2]
[329828208,1718719843758,-937.64,0.00013699,2]
[329828209,1718719843768,-200.0,0.00013699,2]
[329828210,1718719843779,-169.2,0.00013699,2]
[329828211,1718719843788,-9999.99,0.00013699,2]
[329828212,1718719843799,-29999.99,0.00013699,2]
[329828213,1718719843808,-29999.99,0.00013699,2]
[329828214,1718719843818,-19999.99,0.00013699,2]
[329828215,1718719843828,-4417.99,0.00013699,2]
[329828216,1718719843838,-6237.06,0.00013699,2]
[329828217,1718719843848,-157.526113,0.00013699,2]
[329828218,1718719843859,-366.808012,0.00013699,2]
[329828219,1718719843869,-151.0,0.00013699,2]
[329828220,1718719843879,-366.808012,0.00013699,2]
[329828221,1718719843889,-151.0,0.00013699,2]
[329828222,1718719843906,-306.036353,0.00013699,2]
[329828223,1718719843916,-306.036353,0.00013699,2]
[329828224,1718719843926,-702.07055,0.00013699,2]
[329828225,1718719843935,-702.07055,0.00013699,2]
[329828226,1718719843945,-151.0,0.00013699,2]
[329828227,1718719843954,-151.0,0.00013699,2]
[329828228,1718719843963,-290.527149,0.00013699,2]
[329828229,1718719843973,-236.513982,0.00013699,2]
[329828230,1718719843983,-290.527149,0.00013699,2]
[329828231,1718719843992,-151.0,0.00013699,2]